bitfinex/quotes_BTCUSD_20250422
["timestamp","ask_amount","ask_price","bid_price","bid_amount"]
[1745350175165,0.002,91579.0,91578.0,0.15287514]
[1745350176101,0.007,91579.0,91574.0,0.15288182]
[1745350176351,0.002,91579.0,91577.0,0.13103634]
[1745350176562,0.00413594,91584.0,91577.0,0.13103634]
[1745350176761,0.006,91579.0,91578.0,0.13203583]
[1745350176974,0.009,91579.0,91578.0,0.13103583]
[1745350177176,0.009,91579.0,91577.0,0.13103634]
[1745350177389,0.006,91579.0,91577.0,0.13103634]
[1745350178385,0.011,91579.0,91577.0,0.13103634]
[1745350178600,0.005,91579.0,91578.0,0.13103583]
[1745350178847,0.011,91579.0,91578.0,0.13103583]
[1745350179781,0.00413594,91584.0,91578.0,0.13103583]
[1745350179986,0.008,91579.0,91578.0,0.13203583]
[1745350180410,0.006,91579.0,91578.0,0.13203583]
[1745350180763,0.009,91579.0,91578.0,0.13203583]
[1745350181894,0.003,91579.0,91578.0,0.13103583]
[1745350182559,0.003,91579.0,91578.0,0.13203583]
[1745350182899,0.003,91579.0,91578.0,0.13103583]
[1745350183295,0.009,91579.0,91578.0,0.13203583]
[1745350185986,0.006,91579.0,91578.0,0.26033262]
[1745350186231,0.00140608,91584.0,91583.0,0.13102868]
[1745350187785,0.00140608,91584.0,91583.0,0.13302868]
[1745350188024,0.00140608,91584.0,91583.0,0.002]
[1745350188241,0.00140608,91584.0,91583.0,0.13302868]
[1745350188427,0.00440608,91584.0,91583.0,0.13402868]
[1745350188635,0.00440608,91584.0,91583.0,0.13302868]
[1745350188852,0.00440608,91584.0,91583.0,0.13402868]
[1745350189055,0.00740608,91584.0,91583.0,0.13202868]
[1745350189286,0.00440608,91584.0,91583.0,0.143905]
[1745350189499,0.00840608,91584.0,91583.0,0.144905]
[1745350189714,0.00140608,91584.0,91583.0,0.143905]
[1745350189930,0.00140608,91584.0,91583.0,0.141905]
[1745350190143,0.00540608,91584.0,91583.0,0.143905]
[1745350190524,0.00540608,91584.0,91582.0,0.13103011]
[1745350190735,0.00540608,91584.0,91583.0,0.13102868]
[1745350191344,0.00140608,91584.0,91583.0,0.13102868]
[1745350191756,0.00540608,91584.0,91583.0,0.13102868]
[1745350191956,0.00140608,91584.0,91583.0,0.13102868]
[1745350192162,0.00540608,91584.0,91583.0,0.13202868]
[1745350193150,0.00540608,91584.0,91583.0,0.13302868]
[1745350200606,0.00540608,91584.0,91583.0,0.002]
[1745350201536,0.22426318,91584.0,91583.0,0.002]
[1745350201719,0.01091953,91579.0,91540.0,0.2531585]
[1745350201934,0.0455,91577.0,91556.0,0.13106626]
[1745350202149,0.11648643,91576.0,91557.0,0.13106551]
[1745350202360,0.11375594,91576.0,91554.0,0.13106895]
[1745350202572,0.0455,91575.0,91540.0,0.2531585]
[1745350202785,0.11375594,91574.0,91555.0,0.13106841]
[1745350202996,0.00273057,91573.0,91555.0,0.13106841]
[1745350203197,0.11375594,91572.0,91564.0,0.00113076]
[1745350203400,0.00273057,91571.0,91564.0,0.00013076]
[1745350203613,0.00273057,91571.0,91564.0,0.00113076]
[1745350203614,0.11375594,91570.0,91564.0,0.00113076]
[1745350203816,0.00273057,91569.0,91564.0,0.00113076]
[1745350204019,0.11648651,91569.0,91564.0,0.00113076]
[1745350204212,0.11648651,91569.0,91564.0,0.00013076]
[1745350205476,0.0455,91566.0,91564.0,0.00113076]
[1745350205635,0.11648676,91565.0,91564.0,0.00113076]
[1745350205844,0.16198676,91565.0,91564.0,0.00113076]
[1745350206046,0.16198676,91565.0,91564.0,0.00013076]
[1745350206416,0.16198676,91565.0,91564.0,0.00113076]
[1745350206846,0.16198676,91565.0,91564.0,0.00013076]
[1745350207251,0.16198676,91565.0,91564.0,0.00113076]
[1745350207448,0.17008216,91565.0,91564.0,0.00113076]
[1745350208473,0.17308216,91565.0,91564.0,0.00113076]
[1745350216067,0.17308216,91565.0,91564.0,0.00113076]
[1745350218936,0.05932622,91565.0,91564.0,0.00113076]
[1745350219152,0.0110954,91565.0,91564.0,0.00113076]
[1745350220066,0.12485134,91565.0,91564.0,0.00113076]
[1745350220346,0.22646391,91565.0,91564.0,0.00113076]
[1745350220603,0.22015134,91565.0,91564.0,0.00113076]
[1745350221072,0.22015134,91565.0,91564.0,0.00013076]
[1745350221327,0.21815134,91565.0,91564.0,0.00013076]
[1745350221563,0.22215134,91565.0,91564.0,0.00013076]
[1745350221793,0.22115134,91565.0,91564.0,0.00013076]
[1745350221932,0.22388214,91565.0,91564.0,0.00013076]
[1745350222151,0.23088214,91565.0,91564.0,0.00013076]
[1745350222358,0.22815134,91565.0,91564.0,0.00013076]
[1745350227326,0.17815134,91565.0,91564.0,0.00013076]
[1745350229302,0.18088217,91565.0,91564.0,0.00013076]
[1745350230370,0.17815134,91565.0,91564.0,0.00013076]
[1745350231470,0.18627171,91565.0,91564.0,0.00013076]
[1745350233116,0.01912037,91565.0,91564.0,0.00013076]
[1745350234121,0.011,91565.0,91564.0,0.00013076]
[1745350234341,0.002,91565.0,91564.0,0.05063076]
[1745350234571,0.0509,91589.0,91575.0,0.13103908]
[1745350234572,0.00273,91588.0,91575.0,0.13103908]
[1745350234792,0.00772999,91589.0,91570.0,0.25337915]
[1745350235016,0.00772999,91589.0,91573.0,0.13104253]
[1745350235221,0.00772999,91589.0,91570.0,0.38442525]
[1745350235431,0.00772999,91589.0,91570.0,0.1310461]
[1745350235927,0.00772999,91589.0,91572.0,0.13104391]
[1745350236551,0.00772999,91589.0,91575.0,0.001]
[1745350236772,0.00540608,91584.0,91575.0,0.001]
[1745350236986,0.00140608,91584.0,91572.0,0.13104391]
[1745350237194,0.00540608,91584.0,91572.0,0.13204391]
[1745350237406,0.00540608,91584.0,91572.0,0.13104391]
[1745350237832,0.00540608,91584.0,91568.0,0.09856]
[1745350238262,0.01040608,91584.0,91575.0,0.001]
[1745350238486,0.00272985,91583.0,91575.0,0.001]
[1745350238917,0.01140608,91584.0,91578.0,0.13103524]
[1745350239140,0.01975194,91584.0,91575.0,0.002189]
[1745350239358,0.01475194,91584.0,91575.0,0.002189]
[1745350239591,0.00975194,91584.0,91578.0,0.13103446]
[1745350239821,0.01375194,91584.0,91578.0,0.13103446]
[1745350240040,0.01375194,91584.0,91572.0,0.001]
[1745350240246,0.00272966,91583.0,91572.0,0.001]
[1745350240865,0.00372966,91583.0,91572.0,0.001]
[1745350241071,0.00372966,91583.0,91570.0,0.09856]
[1745350241305,0.001,91583.0,91570.0,0.09856]
[1745350241511,0.00372985,91583.0,91575.0,0.001]
[1745350241726,0.001,91583.0,91575.0,0.001]
[1745350241987,0.00372985,91583.0,91575.0,0.001]
[1745350242197,0.00272985,91583.0,91575.0,0.001]
[1745350242586,0.01475194,91584.0,91575.0,0.001]
[1745350242809,0.01475194,91584.0,91582.0,0.13102872]
[1745350243023,0.00975194,91584.0,91580.0,0.13103216]
[1745350243226,0.00975194,91584.0,91581.0,0.15905594]
[1745350243495,0.00975194,91584.0,91583.0,0.0495]
[1745350243694,0.00975194,91584.0,91583.0,0.18052868]
[1745350243895,0.01475194,91584.0,91583.0,0.18052868]
[1745350244410,0.01775194,91584.0,91583.0,0.18052868]
[1745350244662,0.00975194,91584.0,91583.0,0.18052868]
[1745350245067,0.01375194,91584.0,91583.0,0.18152868]
[1745350248562,0.01375194,91584.0,91583.0,0.31082547]
[1745350249717,0.01075194,91584.0,91583.0,0.31382547]
[1745350249921,0.01275194,91584.0,91583.0,0.31482547]
[1745350250127,0.01275194,91584.0,91583.0,0.31082547]
[1745350250322,0.01175194,91584.0,91583.0,0.31082547]
[1745350250573,0.01275194,91584.0,91583.0,0.31482547]
[1745350258588,0.00440608,91584.0,91583.0,0.31482547]
[1745350258891,0.00440608,91584.0,91583.0,0.36092547]
[1745350259533,0.00340608,91584.0,91583.0,0.35692547]
[1745350259765,0.00340608,91584.0,91583.0,0.35592547]
[1745350259944,0.00140608,91584.0,91583.0,0.35592547]
[1745350260161,0.00240608,91584.0,91583.0,0.36492547]
[1745350261632,0.00140608,91584.0,91583.0,0.35692547]
[1745350261839,0.00140608,91584.0,91583.0,0.36292547]
[1745350262050,0.00240608,91584.0,91583.0,0.36292547]
[1745350263856,0.005,91589.0,91588.0,0.13102153]
[1745350263857,0.00134608,91589.0,91588.0,0.13102153]
[1745350264060,0.00134608,91589.0,91588.0,0.24477747]
[1745350265083,0.00134608,91589.0,91588.0,0.24877747]
[1745350265559,0.00134608,91589.0,91588.0,0.36047832]
[1745350266009,0.05044608,91589.0,91588.0,0.004]
[1745350266222,0.05144608,91589.0,91588.0,0.004]
[1745350266671,0.10094608,91589.0,91588.0,0.004]
[1745350266873,0.09994608,91589.0,91588.0,0.004]
[1745350267277,0.10494608,91589.0,91588.0,0.005]
[1745350267499,0.68869434,91589.0,91588.0,0.005]
[1745350267714,0.67450202,91589.0,91588.0,0.005]
[1745350267928,0.67450202,91589.0,91588.0,0.001]
[1745350268137,0.67450202,91589.0,91588.0,0.005]
[1745350268584,0.4548,91584.0,91583.0,0.001]
[1745350268804,0.56755594,91584.0,91583.0,0.001]
[1745350269744,0.57055594,91584.0,91583.0,0.001]
[1745350270014,0.57055594,91584.0,91583.0,0.002]
[1745350270215,0.46375594,91584.0,91583.0,0.002]
[1745350270717,0.011,91584.0,91583.0,0.13302868]
[1745350271144,0.011,91584.0,91583.0,0.002]
[1745350271775,0.008,91584.0,91583.0,0.001]
[1745350271983,0.001,91584.0,91583.0,0.001]
[1745350272188,0.004,91584.0,91583.0,0.001]
[1745350272397,0.003,91584.0,91583.0,0.001]
[1745350272836,0.004,91584.0,91583.0,0.001]
[1745350274321,0.005,91584.0,91579.0,0.04276702]
[1745350274530,0.005,91584.0,91580.0,0.13103235]
[1745350274742,0.005,91584.0,91583.0,0.13102868]
[1745350274922,0.005,91584.0,91582.0,0.13102995]
[1745350275147,0.004,91584.0,91582.0,0.13102995]
[1745350275283,0.001,91584.0,91582.0,0.13102995]
[1745350275720,0.006,91584.0,91582.0,0.13102995]
[1745350276290,0.012,91584.0,91582.0,0.13102995]
[1745350277453,0.012,91584.0,91583.0,0.10919057]
[1745350278328,0.011,91584.0,91583.0,0.10919057]
[1745350278528,0.001,91584.0,91583.0,0.10919057]
[1745350278740,0.002,91584.0,91583.0,0.10919057]
[1745350278948,0.007,91584.0,91583.0,0.11019057]
[1745350279586,0.007,91584.0,91583.0,0.10919057]
[1745350279788,0.002,91584.0,91583.0,0.10919057]
[1745350279995,0.007,91584.0,91583.0,0.11019057]
[1745350280818,0.006,91584.0,91583.0,0.11019057]
[1745350281168,0.001,91584.0,91583.0,0.10919057]
[1745350281415,0.006,91584.0,91583.0,0.10919057]
[1745350281621,0.007,91584.0,91583.0,0.10919057]
[1745350282064,0.006,91584.0,91583.0,0.10919057]
[1745350282392,0.007,91584.0,91583.0,0.10919057]
[1745350309367,0.007,91584.0,91583.0,0.23748736]
[1745350309984,0.00134608,91589.0,91588.0,0.1091846]
[1745350310192,0.00134608,91589.0,91588.0,0.22294054]
[1745350311367,0.00134608,91589.0,91588.0,0.23748139]
[1745350312951,0.00134608,91589.0,91588.0,0.23948139]
[1745350313151,0.00234608,91589.0,91588.0,0.23948139]
[1745350313362,0.00134608,91589.0,91588.0,0.23948139]
[1745350313775,0.00234608,91589.0,91588.0,0.23748139]
[1745350313981,0.00234608,91589.0,91588.0,0.24048139]
[1745350315366,0.00234608,91589.0,91588.0,0.23748139]
[1745350315591,0.00234608,91589.0,91588.0,0.23848139]
[1745350319770,0.00234608,91589.0,91588.0,0.04505528]
[1745350320182,0.00234608,91589.0,91588.0,0.15423988]
[1745350321028,0.00234608,91589.0,91588.0,0.1101846]
[1745350321247,0.00234608,91589.0,91588.0,0.2065446]
[1745350324734,0.00234608,91589.0,91588.0,0.09736]
[1745350325170,0.00234608,91589.0,91588.0,0.2065446]
[1745350326340,0.00234608,91589.0,91588.0,0.001]
[1745350326341,0.05014608,91589.0,91588.0,0.001]
[1745350326534,0.0478,91588.0,91567.0,0.09532]
[1745350326736,0.1148,91584.0,91568.0,0.09532]
[1745350326938,0.05053002,91583.0,91568.0,0.09532]
[1745350327554,0.0478,91583.0,91574.0,0.12012136]
[1745350327745,0.0478,91583.0,91576.0,0.10919886]
[1745350327964,0.0478,91583.0,91574.0,0.10920123]
[1745350328172,0.0478,91583.0,91572.0,0.12012341]
[1745350328379,0.0478,91583.0,91572.0,0.10920305]
[1745350328798,0.0478,91583.0,91575.0,0.10919925]
[1745350329017,0.0478,91583.0,91580.0,0.10919414]
[1745350329248,0.0478,91583.0,91579.0,0.10919419]
[1745350329457,0.0478,91583.0,91574.0,0.01592013]
[1745350329675,0.0478,91583.0,91575.0,0.01092001]
[1745350329894,0.0478,91583.0,91578.0,0.10919619]
[1745350330518,0.0488,91583.0,91578.0,0.10919619]
[1745350330746,0.0488,91583.0,91575.0,0.004]
[1745350331200,0.0478,91583.0,91571.0,0.10920417]
[1745350331410,0.0488,91583.0,91575.0,0.004]
[1745350331635,0.0488,91583.0,91578.0,0.004]
[1745350332068,0.0488,91583.0,91575.0,0.004]
[1745350332756,0.0478,91583.0,91573.0,0.10920219]
[1745350332971,0.0488,91583.0,91573.0,0.10920219]
[1745350333195,0.0488,91583.0,91578.0,0.001]
[1745350333392,0.0478,91583.0,91578.0,0.001]
[1745350334182,0.0478,91583.0,91570.0,0.10920501]
[1745350334391,0.0478,91583.0,91578.0,0.001]
[1745350335275,0.00272982,91582.0,91578.0,0.001]
[1745350335683,0.00272982,91582.0,91573.0,0.09532]
[1745350335888,0.00272982,91582.0,91578.0,0.001]
[1745350336098,0.34,91580.0,91578.0,0.001]
[1745350336317,0.04853008,91579.0,91578.0,0.001]
[1745350337392,0.04853008,91579.0,91565.0,0.09532]
[1745350337600,0.04853008,91579.0,91578.0,0.001]
[1745350337828,0.04853008,91579.0,91578.0,0.002]
[1745350338030,0.04853008,91579.0,91578.0,0.001]
[1745350338444,0.04853008,91579.0,91578.0,0.002]
[1745350340346,0.38853008,91579.0,91578.0,0.002]
[1745350340583,0.3858,91579.0,91578.0,0.001]
[1745350340798,0.34,91578.0,91564.0,0.00013076]
[1745350341016,0.04753008,91577.0,91564.0,0.00013076]
[1745350341886,0.0448,91577.0,91564.0,0.00013076]
[1745350342424,0.0448,91577.0,91564.0,0.00213076]
[1745350343066,0.0448,91577.0,91564.0,0.00413076]
[1745350343274,0.0448,91577.0,91564.0,0.00213076]
[1745350343480,0.0448,91577.0,91567.0,0.10920897]
[1745350343696,0.0458,91577.0,91565.0,0.10921203]
[1745350343903,0.0458,91577.0,91566.0,0.10921084]
[1745350344107,0.0458,91577.0,91570.0,0.10920517]
[1745350344316,0.0448,91577.0,91569.0,0.10920701]
[1745350344702,0.0458,91577.0,91569.0,0.10920701]
[1745350344906,0.00273008,91576.0,91567.0,0.001]
[1745350345112,0.00273008,91576.0,91568.0,0.10920841]
[1745350345258,0.00273008,91576.0,91567.0,0.001]
[1745350345680,0.00273008,91576.0,91569.0,0.001]
[1745350346311,0.00273008,91576.0,91570.0,0.1102051]
[1745350346537,0.00273008,91576.0,91570.0,0.1092051]
[1745350346869,0.00273008,91576.0,91569.0,0.002]
[1745350347094,0.00273008,91576.0,91566.0,0.10920862]
[1745350347299,0.00273008,91576.0,91570.0,0.001]
[1745350347711,0.3858,91574.0,91567.0,0.001]
[1745350347907,0.00273022,91573.0,91564.0,0.09545076]
[1745350348128,0.3858,91574.0,91569.0,0.001]
[1745350348362,0.00273022,91573.0,91569.0,0.002]
[1745350348776,0.00273022,91573.0,91569.0,0.001]
[1745350349720,0.00273022,91573.0,91567.0,0.001]
[1745350349918,0.00373022,91573.0,91567.0,0.001]
[1745350350128,0.00273022,91573.0,91567.0,0.001]
[1745350350295,0.00273022,91573.0,91564.0,0.00013076]
[1745350350509,0.34273022,91573.0,91569.0,0.002]
[1745350350683,0.34,91573.0,91569.0,0.001]
[1745350350888,0.00273022,91572.0,91569.0,0.001]
[1745350351089,0.00273022,91572.0,91567.0,0.001]
[1745350351743,0.0458,91571.0,91564.0,0.00213076]
[1745350351971,0.00273037,91570.0,91564.0,0.00213076]
[1745350352255,0.00273037,91570.0,91569.0,0.001]
[1745350352917,0.00273037,91570.0,91569.0,0.002]
[1745350353300,0.00273037,91570.0,91564.0,0.00013076]
[1745350353499,0.00273037,91570.0,91569.0,0.001]
[1745350353722,0.0458,91571.0,91569.0,0.11020726]
[1745350353920,0.0458,91571.0,91569.0,0.001]
[1745350354276,0.0458,91571.0,91569.0,0.002]
[1745350354694,0.0458,91571.0,91569.0,0.001]
[1745350355094,0.0458,91571.0,91569.0,0.002]
[1745350355724,0.0458,91571.0,91569.0,0.001]
[1745350355928,0.0458,91571.0,91569.0,0.002]
[1745350359725,0.0458,91571.0,91569.0,0.11120713]
[1745350360473,0.34,91570.0,91569.0,0.11120713]
[1745350361218,0.34,91570.0,91569.0,0.002]
[1745350361595,0.34,91570.0,91569.0,0.11120726]
[1745350361880,0.34,91570.0,91569.0,0.11020726]
[1745350362347,0.34,91570.0,91569.0,0.10920726]
[1745350362525,0.34,91570.0,91564.0,0.00013076]
[1745350362526,0.34,91569.0,91564.0,0.00013076]
[1745350362760,0.338,91569.0,91566.0,0.10920993]
[1745350362969,0.338,91569.0,91566.0,0.10921059]
[1745350363185,0.338,91569.0,91568.0,0.10920845]
[1745350363808,0.001,91569.0,91568.0,0.10920845]
[1745350364435,0.001,91569.0,91564.0,0.11334372]
[1745350364652,0.00273035,91568.0,91564.0,0.00413076]
[1745350365178,0.8493,91567.0,91564.0,0.00413076]
[1745350365389,0.34273052,91566.0,91564.0,0.00213076]
[1745350365602,0.34,91566.0,91564.0,0.00213076]
[1745350365784,0.34,91566.0,91564.0,0.00013076]
[1745350365785,0.339,91566.0,91564.0,0.00013076]
[1745350366210,0.338,91566.0,91564.0,0.00013076]
[1745350366916,0.00273053,91565.0,91564.0,0.00113076]
[1745350367470,0.00273053,91565.0,91564.0,0.00013076]
[1745350367674,0.00273053,91565.0,91564.0,0.00113076]
[1745350367908,0.341,91566.0,91565.0,0.10921203]
[1745350368270,0.341,91566.0,91564.0,0.00113076]
[1745350368649,0.342,91566.0,91564.0,0.00113076]
[1745350369106,0.338,91566.0,91564.0,0.00013076]
[1745350369311,0.341,91566.0,91564.0,0.00013076]
[1745350369521,0.002,91565.0,91564.0,0.00013076]
[1745350369733,0.00473026,91565.0,91564.0,0.00013076]
[1745350370565,0.34473026,91565.0,91564.0,0.00013076]
[1745350370770,0.34,91565.0,91564.0,0.00013076]
[1745350370998,0.342,91565.0,91564.0,0.00013076]
[1745350371833,0.344,91565.0,91564.0,0.00013076]
[1745350373588,0.756,91565.0,91564.0,0.00013076]
[1745350374358,0.98455594,91565.0,91564.0,0.00013076]
[1745350374560,1.08185594,91565.0,91564.0,0.00013076]
[1745350376920,1.30028001,91565.0,91564.0,0.00013076]
[1745350377173,1.08185594,91565.0,91564.0,0.00013076]
[1745350377501,1.30028001,91565.0,91564.0,0.00013076]
[1745350377720,1.29828001,91565.0,91564.0,0.00013076]
[1745350377917,1.07985594,91565.0,91564.0,0.00013076]
[1745350378226,1.07785594,91565.0,91564.0,0.00013076]
[1745350378831,1.07776113,91565.0,91564.0,0.00013076]
[1745350379037,1.07876113,91565.0,91564.0,0.00013076]
[1745350379655,1.07976113,91565.0,91564.0,0.00013076]
[1745350379864,0.32785594,91565.0,91546.0,0.01748953]
[1745350380034,0.1148,91563.0,91546.0,0.01759861]
[1745350380248,0.38602855,91560.0,91546.0,0.01759861]
[1745350380464,0.1148,91558.0,91546.0,0.01759861]
[1745350380661,0.00273078,91557.0,91546.0,0.01759861]
[1745350381188,0.00273078,91557.0,91546.0,0.01859861]
[1745350381494,0.0453,91556.0,91546.0,0.01759861]
[1745350381735,0.00273078,91555.0,91546.0,0.01759861]
[1745350381939,0.00273078,91555.0,91546.0,0.02159861]
[1745350382362,0.00273078,91555.0,91546.0,0.01759861]
[1745350382573,0.00273078,91555.0,91546.0,0.02159861]
[1745350382785,0.00273078,91555.0,91546.0,0.02259861]
[1745350383002,0.00273078,91555.0,91546.0,0.01759861]
[1745350383438,0.4548,91553.0,91546.0,0.00553298]
[1745350383654,0.1148,91547.0,91546.0,0.00553298]
[1745350383863,0.57128717,91547.0,91546.0,0.00553298]
[1745350384074,0.45375594,91547.0,91546.0,0.00453298]
[1745350384482,0.45375594,91547.0,91546.0,0.00553298]
[1745350384692,0.45375594,91547.0,91546.0,0.00453298]
[1745350385110,0.45375594,91547.0,91546.0,0.00053298]
[1745350385530,0.45375594,91547.0,91546.0,0.00453298]
[1745350385957,0.45375594,91547.0,91537.0,0.0008478]
[1745350385958,0.34,91543.0,91526.0,0.000424]
[1745350386167,0.0478,91541.0,91532.0,0.00089461]
[1745350386375,0.0453,91539.0,91532.0,0.00089461]
[1745350386554,0.1164874,91538.0,91532.0,0.00089461]
[1745350387784,0.13226441,91538.0,91532.0,0.00089461]
[1745350388821,0.13526441,91538.0,91532.0,0.00089461]
[1745350393580,0.13526441,91538.0,91526.0,0.000424]
[1745350393581,0.34,91537.0,91530.0,1e-08]
[1745350393797,0.34,91537.0,91513.0,0.05147567]
[1745350393798,0.0453,91524.0,91513.0,0.05147567]
[1745350394008,0.34,91519.0,91499.0,0.14094]
[1745350394223,0.34,91519.0,91492.0,0.0464]
[1745350394224,0.34,91517.0,91509.0,0.00088766]
[1745350394439,0.34,91515.0,91509.0,0.00088766]
[1745350394661,0.34,91513.0,91509.0,0.00088766]
[1745350394876,0.60635534,91510.0,91509.0,0.00088766]
[1745350395125,0.60635534,91510.0,91495.0,0.0952642]
[1745350395126,0.55857445,91502.0,91495.0,0.0004242]
[1745350395379,0.55857445,91502.0,91501.0,0.00042421]
[1745350395380,0.67233039,91502.0,91501.0,0.00042421]
[1745350396450,0.55858879,91496.0,91495.0,0.0004242]
[1745350396691,0.71764473,91496.0,91495.0,0.0004242]
[1745350396891,0.01093206,91474.0,91457.0,0.09488]
[1745350397100,0.22137698,91473.0,91457.0,0.09488]
[1745350397313,0.11375594,91472.0,91457.0,0.09488]
[1745350397524,0.00273339,91479.0,91464.0,0.0004242]
[1745350398375,0.00273339,91479.0,91471.0,0.00504613]
[1745350398917,0.00273339,91479.0,91471.0,0.00704613]
[1745350399120,0.001,91473.0,91471.0,0.00704613]
[1745350399544,0.02223825,91473.0,91471.0,0.10932424]
[1745350399773,0.001,91473.0,91471.0,0.10932424]
[1745350400900,0.34,91489.0,91471.0,0.10932424]
[1745350401455,0.34,91489.0,91475.0,0.01093194]
[1745350401658,0.34,91489.0,91476.0,0.10931829]
[1745350401848,0.00273269,91488.0,91476.0,0.10931829]
[1745350402045,0.36054018,91489.0,91476.0,0.10931829]
[1745350402616,0.36054018,91489.0,91474.0,0.12025173]
[1745350402847,0.36354018,91489.0,91475.0,0.10931905]
[1745350403059,0.36054018,91489.0,91475.0,0.10931937]
[1745350403267,0.00273269,91488.0,91472.0,0.12025523]
[1745350404043,0.00273269,91488.0,91473.0,0.10932153]
[1745350404452,0.00273269,91488.0,91475.0,0.10931898]
[1745350405252,0.36154018,91489.0,91475.0,0.10931898]
[1745350405455,0.02054018,91489.0,91488.0,0.10930395]
[1745350405654,0.0453,91509.0,91493.0,0.01092979]
[1745350405976,0.00373215,91515.0,91492.0,0.09492]
[1745350406177,0.38602855,91510.0,91493.0,0.09492]
[1745350406353,0.39412056,91510.0,91493.0,0.09492]
[1745350406554,0.40654869,91510.0,91493.0,0.09492]
[1745350407362,0.00273203,91509.0,91493.0,0.09492]
[1745350407963,0.34273203,91509.0,91493.0,0.09492]
[1745350408197,0.38602855,91503.0,91493.0,0.09492]
[1745350408409,0.38602855,91503.0,91493.0,0.20421795]
[1745350408617,0.34,91509.0,91494.0,0.10929652]
[1745350408807,0.342,91509.0,91496.0,0.10929394]
[1745350409262,0.342,91509.0,91494.0,0.10929644]
[1745350409263,0.343,91509.0,91494.0,0.10929644]
[1745350409407,0.002,91503.0,91495.0,0.10929532]
[1745350410034,0.002,91503.0,91496.0,0.10929395]
[1745350410248,0.002,91503.0,91498.0,0.10929103]
[1745350410636,0.346,91509.0,91498.0,0.10929103]
[1745350411050,0.349,91509.0,91499.0,0.09488]
[1745350411304,0.343,91509.0,91499.0,0.09488]
[1745350411504,0.34,91509.0,91499.0,0.09488]
[1745350411706,0.003,91503.0,91499.0,0.09488]
[1745350412201,0.003,91503.0,91499.0,0.09588]
[1745350412333,0.003,91503.0,91499.0,0.0960059]
[1745350412547,0.343,91509.0,91499.0,0.0960059]
[1745350412960,0.343,91509.0,91500.0,0.09488]
[1745350413371,0.005,91503.0,91500.0,0.09488]
[1745350414193,0.008,91503.0,91500.0,0.09488]
[1745350414639,0.003,91503.0,91500.0,0.09488]
[1745350414852,0.344,91509.0,91500.0,0.09488]
[1745350415446,0.005,91503.0,91500.0,0.09488]
[1745350415687,0.009,91503.0,91500.0,0.09588]
[1745350416934,0.009,91503.0,91500.0,0.09488]
[1745350416935,0.005,91503.0,91500.0,0.09488]
[1745350417221,0.005,91503.0,91500.0,0.09588]
[1745350417648,0.00273204,91508.0,91500.0,0.09488]
[1745350417868,0.005,91503.0,91500.0,0.09488]
[1745350418174,0.009,91503.0,91500.0,0.09588]
[1745350418610,0.00273204,91508.0,91500.0,0.09488]
[1745350418807,0.00673204,91508.0,91500.0,0.09588]
[1745350419048,0.01173204,91508.0,91500.0,0.09588]
[1745350419649,0.00673204,91508.0,91500.0,0.09588]
[1745350420057,0.00273204,91508.0,91500.0,0.09488]
[1745350420278,0.004,91503.0,91500.0,0.09588]
[1745350420810,0.00273204,91508.0,91500.0,0.09488]
[1745350421006,0.00673204,91508.0,91500.0,0.09588]
[1745350421272,0.005,91503.0,91500.0,0.09588]
[1745350421492,0.005,91503.0,91500.0,0.09488]
[1745350421965,0.004,91503.0,91500.0,0.09564]
[1745350422784,0.009,91503.0,91500.0,0.09564]
[1745350422993,0.009,91503.0,91500.0,0.001]
[1745350423392,0.009,91503.0,91500.0,0.09564]
[1745350423603,0.009,91503.0,91500.0,0.20492959]
[1745350424020,0.009,91503.0,91500.0,0.09564]
[1745350424228,0.009,91503.0,91500.0,0.001]
[1745350424229,0.04773214,91502.0,91500.0,0.001]
[1745350425261,0.05273214,91502.0,91500.0,0.001]
[1745350426061,0.05273214,91502.0,91499.0,0.0001259]
[1745350426263,0.05273214,91502.0,91500.0,0.001]
[1745350426489,0.05673214,91502.0,91500.0,0.001]
[1745350427120,0.05273214,91502.0,91499.0,0.0001259]
[1745350427320,0.05573214,91502.0,91499.0,0.0011259]
[1745350427754,0.16648808,91502.0,91499.0,0.0001259]
[1745350427952,0.45648333,91501.0,91499.0,0.0001259]
[1745350428168,0.00273267,91500.0,91499.0,0.0001259]
[1745350428348,0.50148861,91500.0,91499.0,0.0001259]
[1745350428567,0.49775594,91500.0,91499.0,0.0001259]
[1745350430120,0.388,91500.0,91499.0,0.0011259]
[1745350431167,0.392,91500.0,91499.0,0.0011259]
[1745350434190,0.50575594,91500.0,91499.0,0.0011259]
[1745350441028,0.392,91500.0,91499.0,0.0011259]
[1745350441247,0.34,91499.0,91479.0,0.21488575]
[1745350441431,0.00273244,91498.0,91481.0,0.01093123]
[1745350441661,0.00273244,91498.0,91483.0,0.10930958]
[1745350441875,0.34,91490.0,91482.0,0.10931112]
[1745350442316,0.34,91490.0,91483.0,0.10930934]
[1745350442964,0.34,91490.0,91482.0,0.12024223]
[1745350442965,0.34,91490.0,91482.0,0.01093111]
[1745350443180,0.34,91490.0,91484.0,0.10930795]
[1745350443379,0.34,91490.0,91482.0,0.10931079]
[1745350443790,0.34,91490.0,91483.0,0.001]
[1745350444269,0.34,91490.0,91483.0,0.002]
[1745350444475,0.34,91490.0,91485.0,0.10930688]
[1745350444653,0.34,91490.0,91483.0,0.001]
[1745350444654,0.34,91490.0,91483.0,0.1103096]
[1745350444906,0.341,91490.0,91486.0,0.10930579]
[1745350445083,0.34,91490.0,91486.0,0.10930579]
[1745350445449,0.341,91490.0,91486.0,0.10930579]
[1745350445653,0.001,91490.0,91488.0,0.10930377]
[1745350446885,0.001,91490.0,91485.0,0.10930384]
[1745350447482,0.34,91499.0,91485.0,0.10930384]
[1745350447979,0.001,91490.0,91487.0,0.10930514]
[1745350448197,0.34,91499.0,91487.0,0.10930514]
[1745350448364,0.001,91490.0,91487.0,0.10930514]
[1745350448612,0.002,91490.0,91487.0,0.10930514]
[1745350448839,0.002,91490.0,91488.0,0.10930357]
[1745350449020,0.001,91490.0,91487.0,0.10930514]
[1745350449347,0.001,91499.0,91486.0,0.10930581]